[Event "67th Mexican-ch Open 2022"]
[Site "Chihuahua"]
[Date "2022.04.14"]
[Round "2.6"]
[White "Gonzalez Arroyo, Lenin"]
[Black "Obregon Rivero, Juan Carlos"]
[Result "1-0"]
[ECO "B51"]
[WhiteElo "2210"]
[BlackElo "2536"]
[Annotator "TA"]
[PlyCount "77"]
[EventDate "2022.04.12"]
[EventType "swiss"]
[EventCountry "MEX"]
[SourceTitle "playchess.com"]
[Source "ChessBase"]
[SourceQuality "1"]
[TimeControl "5400+30"]

{[%evp 14,77,10,8,18,0,29,19,19,6,21,0,0,-34,0,-45,-29,-45,-17,-59,-49,-43,-57,-64,-1,-65,-25,-11,0,-2,-11,0,0,-44,-57,-108,-96,-116,-110,-92,-37,-91,0,0,0,0,29,25,47,0,0,0,0,-41,-41,-48,-35,-62,0,-47,-7,-56,7,23,234,206]} 1. e4 {[%emt 0:00:05]} c5 {[%emt 1:31:00]} 2. Nf3 {[%emt 1:31:25]} d6 {[%emt 0:00:00]} 3. Bb5+ {[%emt 0:00:00]} Nd7 {[%emt 0:00:00]} 4. d4 {[%emt 0:00:00]} cxd4 {[%emt 0:00:00]} 5. Qxd4 {[%emt 0:00:00]} a6 {[%emt 0:00:00]} 6. Bxd7+ {[%emt 0:00:00]} Bxd7 {[%emt 0:00:00]} 7. O-O {[%emt 0:00:00]} e5 {[%emt 0:00:00] 7...Nf6 gains popularity.} 8. Qd3 {[%emt 0:00:00]} Rc8 {[%emt 0:00:00] B51: Sicilian: Moscow Variation (3 Bb5+) without 3...Bd7.} 9. Nc3 {[%emt 0:00:00] Against Bb5} Qc7 {[%emt 0:00:00]} (9... Be6 $5 {[%cal Re6c4]}) 10. Rd1 {[%emt 0:00:00]} h6 {[%emt 0:00:00] The position is equal.} 11. h3 {[%emt 0:00:00]} Nf6 {[%emt 0:00:00] [#]} 12. Nh4 $146 {[%emt 0:00:00]} ({Predecessor:} 12. a4 Be7 13. Be3 Be6 14. Nd2 O-O 15. a5 Qc6 16. Bb6 d5 17. exd5 Nxd5 18. Nf3 {0-1 (57) Myradow,S (2233)-Lopez Gonzalez,D (2193) Chess.com INT 2021}) 12... b5 {[%emt 0:00:00]} 13. a3 {[%emt 0:00:00]} g6 {[%emt 0:00:00]} 14. g4 {[%emt 0:00:00]} Be7 {[%emt 0:00:00]} 15. Ng2 $1 {[%emt 0:00:00]} Qc4 {[%emt 0:00:00]} 16. Qf3 {[%emt 0:00:00][%cal Od1d6]} Bc6 {[%emt 0:00:00][%cal Rf6e4]} 17. Ne3 {[%emt 0:00:00]} Qe6 {[%emt 0:00:47]} 18. a4 {[%emt 0:00:00]} bxa4 {[%emt 0:03:24]} ({Black should play} 18... b4 $1 $15 19. Ncd5 h5) 19. Ncd5 {[%emt 0:00:00]} (19. Ned5 $11) 19... Nxd5 {[%emt 0:02:26]} (19... h5 $5 {[%cal Rh5g4]} 20. g5 Nxd5 21. exd5 Bb7 $17) 20. exd5 {[%emt 0:00:00]} Bb7 {[%emt 0:00:14]} 21. Rxa4 {[%emt 0:00:00]} Qd7 {[%emt 0:00:06]} 22. b3 {[%emt 0:00:00]} h5 {[%emt 0:01:28]} 23. g5 {[%emt 0:00:00]} Bxg5 {[%emt 0:01:20]} 24. Nc4 {[%emt 0:00:00] [#]} (24. Bb2 $15) 24... Bxc1 $1 $17 {[%emt 0:00:49]} 25. Rxc1 {[%emt 0:00:00]} Qe7 {[%emt 0:00:38][%cal Oc8c4]} 26. Kh2 {[%emt 0:00:16]} Kf8 {[%emt 0:00:36]} (26... Rc5 $17 27. Ne3 f5) 27. Rb4 {[%emt 0:00:38]} ({White should try} 27. Nb6 $15) 27... Rc7 {[%emt 0:00:37]} ({Better is} 27... Rc5 $17 28. Ne3 Kg7) 28. Rb6 $11 {[%emt 0:01:27]} Rd7 {[%emt 0:00:26]} 29. Na5 {[%emt 0:00:38]} Bc8 {[%emt 0:00:33]} 30. Nc6 {[%emt 0:02:53][%mdl 1024] White has compensation.} Qh4 {[%emt 0:00:22]} 31. Rg1 $40 {[%emt 0:00:37][%mdl 128] White mounts an attack.} (31. Rb4 $1 $14 Qg5 32. Rg1) 31... e4 {[%emt 0:00:38]} 32. Qe3 {[%emt 0:01:33] Strongly threatening Rb4.} Kg7 {[%emt 0:00:21]} 33. Nd4 {[%emt 0:01:37] Black must now prevent Nf5+.} Qf6 {[%emt 0:00:29] Prevents Nf5+.} 34. c4 {[%emt 0:00:53]} Re8 {[%emt 0:00:39]} 35. Rg5 {[%emt 0:00:48]} Re5 {[%emt 0:00:27]} (35... Rc7 $15) 36. Rg2 {[%emt 0:02:35]} (36. Rxe5 $11 Qxe5+ 37. Kg2) 36... h4 {[%emt 0:01:10]} 37. Rg4 {[%emt 0:00:19]} (37. Rb8 $11 Re8 38. Nc6) 37... Rb7 {[%emt 0:00:00]} (37... Ra7 $1 $15 38. Rf4 Bf5) 38. Rf4 {[%emt 0:00:36][%mdl 64] [#] Deflection} Qg5 {[%emt 0:00:20]} (38... Qxf4+ $11 {and Black has nothing to worry.} 39. Qxf4 Rxb6) 39. Rxd6 {[%emt 0:00:22] Weighted Error Value: White=0.19 (very precise) /Black=0.32} 1-0

[Event "67th Mexican-ch Open 2022"]
[Site "Chihuahua"]
[Date "2022.04.14"]
[Round "2.7"]
[White "Salinas Herrera, Pablo"]
[Black "Lopez Raygoza, Luis Alberto"]
[Result "1-0"]
[ECO "B31"]
[WhiteElo "2517"]
[BlackElo "2207"]
[Annotator "TA"]
[PlyCount "97"]
[EventDate "2022.04.12"]
[EventType "swiss"]
[EventCountry "MEX"]
[SourceTitle "playchess.com"]
[Source "ChessBase"]
[SourceQuality "1"]
[TimeControl "5400+30"]

{[%evp 10,97,26,16,27,29,38,0,49,52,75,74,124,128,147,142,142,140,148,113,132,142,176,162,162,161,171,164,188,185,182,179,215,210,211,153,161,154,156,145,137,94,97,76,155,115,127,99,131,82,72,75,109,107,107,106,107,107,107,112,112,111,110,108,113,97,81,29,26,46,111,113,114,75,633,633,750,737,1921,1756,29954,4911,4610,4610,4933,2018,1652,1443,898,873]} 1. e4 {[%emt 0:00:03]} c5 {[%emt 0:00:19]} 2. Nf3 {[%emt 0:00:07]} Nc6 {[%emt 0:00:06]} 3. Bb5 {[%emt 0:00:04]} g6 {[%emt 0:00:07]} 4. Bxc6 {[%emt 0:00:06]} bxc6 {[%emt 0:00:08]} 5. O-O {[%emt 0:00:06]} Bg7 {[%emt 0:00:03]} 6. Re1 {[%emt 0:00:06]} Rb8 {[%emt 0:00:32] B31: Sicilian: 2...Nc6 3 Bb5 g6.} 7. c3 {[%emt 0:03:29]} d6 {[%emt 0:00:18] [#]} 8. Qa4 $146 {[%emt 0:04:30]} ({Predecessor:} 8. h3 Nf6 9. d4 cxd4 10. cxd4 O-O 11. Nc3 Nd7 12. b3 Bb7 13. Be3 Rc8 14. Rc1 {½-½ (61) Ni,S (2315)-Ushenina,A (2441) China 2015}) 8... Qb6 {[%emt 0:12:42]} (8... Qc7 $1 $11) 9. e5 $14 {[%emt 0:07:52]} d5 {[%emt 0:02:48]} 10. d4 {[%emt 0:00:10]} c4 {[%emt 0:01:21]} (10... cxd4 $142 11. cxd4 h5) 11. Nbd2 {[%emt 0:03:52]} Nh6 {[%emt 0:20:30]} 12. b3 {[%emt 0:00:17]} cxb3 {[%emt 0:57:36]} 13. axb3 {[%emt 0:00:07]} a6 {[%emt 0:00:00]} 14. Ba3 {[%emt 0:01:14]} Qb7 {[%emt 0:00:00]} 15. b4 {[%emt 0:09:26]} Bf5 {[%emt 0:00:00]} 16. Bc1 {[%emt 0:02:11]} Bd3 {[%emt 0:00:00]} 17. Nb3 {[%emt 0:00:06]} Bb5 {[%emt 0:00:00]} 18. Qa5 {[%emt 0:00:15]} O-O {[%emt 0:00:00]} 19. Nc5 {[%emt 0:00:03][%csl LRa6,LRb7]} Qc8 {[%emt 0:00:00]} 20. e6 {[%emt 0:00:06]} (20. Nxa6 $2 Ra8 21. Qb6 (21. Bxh6 $2 Rxa6 22. Qxa6 Bxa6 $19) 21... Rxa6 $19) 20... f6 {[%emt 0:00:00]} 21. Nd7 {[%emt 0:01:41]} (21. Nxa6 $2 Ra8 22. Qb6 (22. Bxh6 $2 Rxa6 23. Bxg7 Rxa5 $19) 22... Rxa6 $19) 21... Nf5 {[%emt 0:00:00]} 22. Bf4 {[%emt 0:00:58]} ({Don't do} 22. Nxf8 Bxf8 23. Qa2 Rb7) 22... Rb7 {[%emt 0:00:00]} 23. Nxf8 {[%emt 0:00:06]} Bxf8 {[%emt 0:00:00]} 24. Nd2 {[%emt 0:17:34][%cal Bf3d2,Bd2b3,Bb3a5][%mdl 32]} ({Don't play} 24. g4 $6 Ng7 $14) 24... Ng7 {[%emt 0:00:00]} 25. Nb3 {[%emt 0:00:45] Strongly threatening Nc5.} Nxe6 {[%emt 0:00:00]} 26. Bg3 {[%emt 0:07:29][%cal Oe1e6]} Kf7 {[%emt 0:00:00]} (26... Ra7 $142) 27. Qa2 {[%emt 0:02:10]} Bh6 {[%emt 0:00:00]} 28. Na5 {[%emt 0:00:20]} Rd7 {[%emt 0:00:00]} 29. c4 {[%emt 0:04:49]} ({Better is} 29. f3) 29... dxc4 $16 {[%emt 0:00:00] [#]} 30. Rad1 {[%emt 0:07:42]} Rxd4 {[%emt 0:00:00]} (30... Nxd4 $2 31. Nxc4 e6 32. Nb6 Ne2+ {[#]} 33. Qxe2 $1 {[%mdl 512]} Bxe2 34. Rxd7+ (34. Nxc8 $2 {is the wrong capture.} Rxd1 35. Rxd1 Bxd1 $19) 34... Qxd7 35. Nxd7 $18) 31. Rxd4 {[%emt 0:00:35]} Nxd4 {[%emt 0:00:00]} 32. Nxc4 {[%emt 0:00:19]} Bxc4 {[%emt 0:01:58]} 33. Qxc4+ {[%emt 0:00:06]} Ne6 {[%emt 0:00:03]} 34. h3 {[%emt 0:01:25] aiming for Ra1.} Qd7 {[%emt 0:01:30]} 35. Qxa6 {[%emt 0:00:05]} Qd5 {[%emt 0:07:59]} 36. Qe2 {[%emt 0:01:03]} Bf8 {[%emt 0:00:00]} 37. Qd1 {[%emt 0:13:45] Hoping for Qxd5.} Nd4 {[%emt 0:00:00]} 38. f4 {[%emt 0:01:29]} (38. Qa4 $16) 38... e6 $11 {[%emt 0:00:00]} 39. Qa4 {[%emt 0:00:43]} Nf5 {[%emt 0:00:00]} (39... Qc4 $1 $14) 40. Bf2 $16 {[%emt 0:00:07]} Be7 {[%emt 0:00:00]} 41. Qa7 {[%emt 0:00:52]} Kg8 $2 {[%emt 0:00:00][%mdl 8192] Black cannot hold the game after this.} (41... Qd2 $16) 42. g4 $18 {[%emt 0:01:47]} Bxb4 {[%emt 0:00:18]} 43. Qb8+ {[%emt 0:00:05]} Bf8 {[%emt 0:00:05]} 44. gxf5 {[%emt 0:00:02]} Qxf5 {[%emt 0:00:05]} 45. Rd1 {[%emt 0:01:17]} (45. Ra1 $142 Qxh3 46. Ra8 Qg4+ 47. Kh2 Qh5+ 48. Kg3 Qh6 49. Bc5 g5 50. Qxf8+ Qxf8 51. Rxf8+ Kg7 52. Re8) 45... Qxh3 {[%emt 0:00:30] White is clearly winning.} 46. Rd8 {[%emt 0:00:04] White threatens Qd6 and mate. Active counter play!} Qg4+ {[%emt 0:00:06]} 47. Kf1 {[%emt 0:00:03]} (47. Kh2 $142 Kg7 48. Rxf8) 47... Qh3+ {[%emt 0:00:07]} 48. Ke2 {[%emt 0:00:04]} Qh5+ {[%emt 0:00:22]} 49. Ke1 {[%emt 0:00:21] Weighted Error Value: White=0.13 (very precise) /Black=0.54} 1-0

[Event "67th Mexican-ch Open 2022"]
[Site "Chihuahua"]
[Date "2022.04.14"]
[Round "2.7"]
[White "Flores Teillery, Alejandro Francisco "]
[Black "Salinas Herrera, Pablo"]
[Result "*"]
[WhiteElo "1879"]
[BlackElo "2517"]
[Annotator "TA"]
[PlyCount "15"]
[EventDate "2022.04.12"]
[EventType "swiss"]
[EventCountry "MEX"]
[SourceTitle "playchess.com"]
[Source "ChessBase"]
[SourceQuality "1"]
[TimeControl "5400+30"]

{[%evp 10,15,21,14,32,34,53,4]} 1. e4 {[%emt 0:00:03]} c5 {[%emt 0:00:19]} 2. Nf3 {[%emt 0:00:07]} Nc6 {[%emt 0:00:06]} 3. Bb5 {[%emt 0:00:04]} g6 {[%emt 0:00:07]} 4. Bxc6 {[%emt 0:00:06]} bxc6 {[%emt 0:00:08]} 5. O-O {[%emt 0:00:06]} Bg7 {[%emt 0:00:03]} 6. Re1 {[%emt 0:00:06]} Rb8 {[%emt 0:00:32] B31: Sicilian: 2...Nc6 3 Bb5 g6.} 7. c3 {[%emt 1:33:28]} d6 {[%emt 0:00:18] [#]} 8. Qa4 $146 {[%emt 1:30:29]} (8. e5 $14) ({Predecessor:} 8. h3 Nf6 9. d4 cxd4 10. cxd4 O-O 11. Nc3 Nd7 12. b3 Bb7 13. Be3 Rc8 14. Rc1 {½-½ (61) Ni,S (2315)-Ushenina,A (2441) China 2015}) *

[Event "67th Mexican-ch Open 2022"]
[Site "Chihuahua"]
[Date "2022.04.14"]
[Round "2.8"]
[White "Flores Guerrero, Jesus Aldair"]
[Black "Quesada Perez, Luis Ernesto"]
[Result "0-1"]
[ECO "A20"]
[WhiteElo "2251"]
[BlackElo "2517"]
[Annotator "TA"]
[PlyCount "72"]
[EventDate "2022.04.12"]
[EventType "swiss"]
[EventCountry "MEX"]
[SourceTitle "playchess.com"]
[Source "ChessBase"]
[SourceQuality "1"]
[TimeControl "5400+30"]

{[%evp 9,72,-6,12,0,2,5,8,15,10,4,31,31,25,15,39,24,34,10,0,0,6,0,3,-19,-18,-24,-20,-26,-34,-38,-31,-69,-101,-102,-76,-130,-131,-122,-118,-234,-170,-264,-259,-288,-279,-451,-433,-441,-448,-459,-457,-454,-406,-430,-428,-527,-517,-577,-571,-554,-546,-617,-598,-1012,-479]} 1. a3 {[%emt 0:02:52]} e5 {[%emt 0:05:07]} 2. c4 {[%emt 0:00:08]} g6 {[%emt 0:01:01]} 3. Nc3 {[%emt 0:01:26]} Bg7 {[%emt 0:00:08]} 4. g3 {[%emt 0:00:23]} d6 {[%emt 0:00:40]} 5. Bg2 {[%emt 0:00:29]} Nf6 {[%emt 0:00:59]} 6. d3 {[%emt 0:02:32] A20: English Opening: 1...e5.} O-O {[%emt 0:00:14]} 7. e4 {[%emt 0:03:04]} Na6 {[%emt 0:04:22]} 8. Nge2 {[%emt 0:02:05] The position is equal.} c6 {[%emt 0:01:32]} 9. O-O {[%emt 0:06:27]} Nh5 {[%emt 0:03:33]} 10. Be3 {[%emt 0:03:47]} Be6 {[%emt 0:06:36] [#]} 11. f3 $146 {[%emt 0:17:54]} ({Predecessor:} 11. Rb1 Nc7 12. b4 Qd7 13. b5 cxb5 14. Nxb5 Nxb5 15. Rxb5 b6 16. Nc3 Qc7 17. Qd2 {1-0 (65) Saffioti,M (1820)-Mancin,M (1876) Ceriano Laghetto 2008}) 11... Nc7 {[%emt 0:01:38]} 12. Rc1 {[%emt 0:01:49]} Nf6 {[%emt 0:16:44]} 13. Qd2 {[%emt 0:06:14]} d5 {[%emt 0:01:14]} 14. cxd5 {[%emt 0:00:14]} cxd5 {[%emt 0:00:02] [#] Strongly threatening ...d4.} 15. d4 {[%emt 0:00:08]} exd4 {[%emt 0:03:56]} 16. Bxd4 {[%emt 0:05:40]} dxe4 {[%emt 0:00:08]} 17. fxe4 {[%emt 0:01:50]} Ng4 {[%emt 0:01:35]} 18. h3 {[%emt 0:20:22]} Ne5 {[%emt 0:01:35]} 19. Qc2 {[%emt 0:08:38]} Bc4 {[%emt 0:08:28]} 20. Rcd1 {[%emt 0:04:42] aiming for Bxe5.} Qg5 {[%emt 0:03:35] White is on the road to losing.} 21. h4 {[%emt 0:03:51]} Qe7 {[%emt 0:00:05]} 22. Nd5 {[%emt 0:00:49]} ({White should play} 22. Rfe1) 22... Nxd5 $17 {[%emt 0:08:51]} 23. exd5 {[%emt 0:00:11]} Rac8 {[%emt 0:01:07][%cal Oc4d3,Ba8c8,Bc8c2,Bc2b2][%mdl 32] White must now prevent ...Bd3!} 24. Qe4 {[%emt 0:01:41] Prevents Bd3.} (24. Rfe1 $17 {was called for.}) 24... Nf3+ {[%emt 0:01:39]} (24... f5 25. Qe3 $17) 25. Qxf3 {[%emt 0:05:08]} (25. Bxf3 {is the only way for White.} Qxe4 26. Bxe4 Bxe2 27. Bxa7 (27. Bxg7 $2 Kxg7 28. Rd2 Bxf1 $19)) 25... Bxe2 $19 {[%emt 0:00:11]} 26. d6 {[%emt 0:00:11]} Qe6 {[%emt 0:03:32] Chess con chili.} ({Inferior is} 26... Qxd6 27. Qxe2 Bxd4+ 28. Kh1 $17) (26... Bxd1 27. Bxg7 Bxf3 28. dxe7 $17) 27. Qf2 {[%emt 0:00:48]} (27. Qe4 Bxd1 28. Bxg7 Qxe4 29. Bxe4 Kxg7 30. Rxd1) 27... Bxd1 {[%emt 0:00:08]} 28. Bxg7 {[%emt 0:00:17] [#]} Rc2 $1 {[%emt 0:01:40]} 29. Qe1 {[%emt 0:00:48]} Qxe1 {[%emt 0:01:45]} ({Not} 29... Kxg7 $2 30. Qxe6 fxe6 31. Rxd1 $19) 30. Rxe1 {[%emt 0:00:21]} Kxg7 {[%emt 0:00:06]} 31. Rxd1 {[%emt 0:00:17]} Rxb2 {[%emt 0:00:04] KRR-KRB. Black is clearly winning.} 32. Rd3 {[%emt 0:00:53]} Rd8 {[%emt 0:00:19]} 33. Kh2 {[%emt 0:00:29]} f5 {[%emt 0:02:59]} 34. Kh3 {[%emt 0:00:14]} Kf6 {[%emt 0:00:16]} 35. g4 {[%emt 0:00:22]} fxg4+ {[%emt 0:00:25]} 36. Kxg4 {[%emt 0:01:26]} Ke5 {[%emt 0:22:16] Weighted Error Value: White=0.51/Black=0.06 (flawless)} (36... Rxg2+ $142 37. Kf3 Rc2) 0-1

[Event "67th Mexican-ch Open 2022"]
[Site "Chihuahua"]
[Date "2022.04.14"]
[Round "2.9"]
[White "Cori Quispe, Kevin Joel"]
[Black "Blanco Fernandez, Alvaro"]
[Result "1-0"]
[ECO "B36"]
[WhiteElo "2492"]
[BlackElo "2216"]
[Annotator "TA"]
[PlyCount "74"]
[EventDate "2022.04.12"]
[EventType "swiss"]
[EventCountry "MEX"]
[SourceTitle "playchess.com"]
[Source "ChessBase"]
[SourceQuality "1"]
[TimeControl "5400+30"]

{[%evp 16,74,38,30,37,34,53,50,58,44,50,29,47,41,55,7,105,43,49,52,52,49,62,61,67,41,33,39,29,20,9,23,89,89,95,92,260,230,206,194,556,617,585,457,405,156,164,177,593,553,595,595,583,574,3269,1202,1943,1399,29985,29986,29994]} 1. e4 {[%emt 0:00:05]} c5 {[%emt 0:00:06]} 2. Nf3 {[%emt 0:00:08]} g6 {[%emt 0:00:09]} 3. d4 {[%emt 0:00:17]} cxd4 {[%emt 0:00:10]} 4. Nxd4 {[%emt 0:00:11]} Nc6 {[%emt 0:00:26]} 5. c4 {[%emt 0:00:13]} Nf6 {[%emt 0:00:37]} 6. Nc3 {[%emt 0:00:09]} Nxd4 {[%emt 0:00:36]} 7. Qxd4 {[%emt 0:00:07]} d6 {[%emt 0:00:15]} 8. Bg5 {[%emt 0:04:41]} Bg7 {[%emt 0:00:27]} 9. Be2 {[%emt 0:00:09]} O-O {[%emt 0:01:54] B36: Sicilian: Maroczy Bind: Gurgenidze System.} 10. Qd3 {[%emt 0:00:04]} b6 {[%emt 0:09:55]} 11. O-O {[%emt 0:04:21]} Bb7 {[%emt 0:01:10] White is slightly better.} 12. Rac1 {[%emt 0:05:46] [#]} Rc8 $146 {[%emt 0:01:11]} ({Predecessor:} 12... Nd7 13. f3 Re8 14. Rfd1 Qc8 15. Qd2 Qc5+ 16. Be3 Bh6 17. Bxc5 Bxd2 18. Rxd2 Nxc5 {½-½ (53) Straub,J (2237)-Riediger,M (2200) Bayern 2006}) 13. f4 {[%emt 0:04:09]} Rc5 {[%emt 0:04:32]} 14. Bh4 {[%emt 0:05:43]} Qa8 {[%emt 0:03:17][%cal Rf6e4]} 15. b4 {[%emt 0:12:35]} (15. Bf3 $1 $14) 15... Rcc8 {[%emt 0:03:14]} (15... Rc7 $1 $11 {remains equal.}) 16. Bf3 {[%emt 0:00:39]} (16. e5 $1 $16 {[%cal Re5f6]} dxe5 17. fxe5) 16... Rfd8 {[%emt 0:09:30]} 17. Rfe1 {[%emt 0:21:03]} Rc7 {[%emt 0:07:58]} 18. Rc2 {[%emt 0:03:52]} Rdc8 {[%emt 0:14:10]} 19. Nb5 {[%emt 0:03:19] And now e5 would win.} Rd7 {[%emt 0:00:31]} 20. Bxf6 {[%emt 0:07:53] &Bianco is more active.} (20. a3 $5 {[%cal Rh4f6]}) 20... Bxf6 {[%emt 0:02:25]} 21. e5 {[%emt 0:00:54]} Bh4 {[%emt 0:02:19] [#]} 22. Bxb7 $1 {[%emt 0:03:02]} Qxb7 {[%emt 0:00:48]} 23. Rd1 {[%emt 0:00:07] Threatens to win with Qh3.} Rcd8 {[%emt 0:08:21] [#]} (23... Rdd8 $1 $11 {keeps the balance.}) 24. e6 $1 $36 {[%emt 0:02:10][%mdl 2048] Black is under strong pressure.} ({Not} 24. exd6 a6 25. Qh3 Bf6 $17) 24... fxe6 {[%emt 0:00:02] [#]} 25. Nd4 $1 {[%emt 0:00:23][%cal Bb5d4,Bd4e6,Be6f4][%mdl 32]} Bf6 $2 {[%emt 0:04:35] This move loses the game for Black.} (25... e5 $16 26. Ne6 exf4) 26. Nxe6 $18 {[%emt 0:00:11]} Rc8 {[%emt 0:00:24]} 27. f5 {[%emt 0:03:06]} Kf7 {[%emt 0:00:41]} (27... g5 {is tougher.} 28. Qe2 Rb8) 28. fxg6+ {[%emt 0:03:01]} hxg6 {[%emt 0:00:26]} 29. Nf4 {[%emt 0:00:06]} Rg8 {[%emt 0:00:35]} 30. c5 $2 {[%emt 0:02:18]} (30. Rf2 $18) 30... bxc5 $16 {[%emt 0:00:55]} 31. bxc5 {[%emt 0:00:07][%cal Bb4c5,Bc5c6,Bc6c7][%mdl 32] Black must now prevent c6.} d5 $2 {[%emt 0:08:03]} (31... Qc6 {is a better chance.} 32. Rf2 (32. Qh3 d5 $16) 32... Qxc5) 32. c6 $18 {[%emt 0:05:05]} Qb6+ {[%emt 0:00:11]} 33. Kh1 {[%emt 0:00:05]} Rd6 {[%emt 0:01:00]} 34. c7 {[%emt 0:05:14]} Rc8 {[%emt 0:04:57]} 35. Qxg6+ {[%emt 0:00:27]} Kf8 {[%emt 0:00:01]} 36. Qh7 {[%emt 0:03:10]} Ke8 {[%emt 0:09:30]} 37. Nxd5 {[%emt 0:00:26]} Rxc7 {[%emt 0:01:18] Weighted Error Value: White=0.18 (very precise) /Black=0.89} 1-0

[Event "67th Mexican-ch Open 2022"]
[Site "Chihuahua"]
[Date "2022.04.14"]
[Round "2.9"]
[White "Sauceda Castillo, Francisco"]
[Black "Cori Quispe, Kevin Joel"]
[Result "*"]
[WhiteElo "1842"]
[BlackElo "2492"]
[Annotator "TA"]
[PlyCount "33"]
[EventDate "2022.04.12"]
[EventType "swiss"]
[EventCountry "MEX"]
[SourceTitle "playchess.com"]
[Source "ChessBase"]
[SourceQuality "1"]
[TimeControl "5400+30"]

{[%evp 16,19,37,29,56,25]} 1. e4 {[%emt 0:00:05]} c5 {[%emt 0:00:06]} 2. Nf3 {[%emt 0:00:08]} g6 {[%emt 0:00:09]} 3. d4 {[%emt 0:00:17]} cxd4 {[%emt 0:00:10]} 4. Nxd4 {[%emt 0:00:11]} Nc6 {[%emt 1:32:05]} 5. c4 {[%emt 0:00:13]} Nf6 {[%emt 0:00:37]} 6. Nc3 {[%emt 0:00:09]} Nxd4 {[%emt 0:00:36]} 7. Qxd4 {[%emt 0:00:07]} d6 {[%emt 0:00:15]} 8. Bg5 {[%emt 0:04:41]} Bg7 {[%emt 1:32:11]} 9. Be2 {[%emt 0:00:09]} O-O {[%emt 0:01:54] B36: Sicilian: Maroczy Bind: Gurgenidze System.} 10. Qd3 {[%emt 0:00:04] [#]} {Predecessor:} Be6 $146 11. O-O Qa5 12. f4 Rfc8 13. Nd5 Bxd5 14. cxd5 Nd7 15. Kh1 Nc5 16. Qe3 Bxb2 17. Rab1 {0-1 (32) Perez Gormaz,M (2413)-Priasmoro,N (2502) Chess.com INT 2021} *

[Event "67th Mexican-ch Open 2022"]
[Site "Chihuahua"]
[Date "2022.04.14"]
[Round "2.10"]
[White "Ibarra Chami, Luis Fernando"]
[Black "Gonzalez Cruz, Ian Josue"]
[Result "*"]
[WhiteElo "2451"]
[BlackElo "1814"]
[Annotator "TA"]
[PlyCount "37"]
[EventDate "2022.04.12"]
[EventType "swiss"]
[EventCountry "MEX"]
[SourceTitle "playchess.com"]
[Source "ChessBase"]
[SourceQuality "1"]
[TimeControl "5400+30"]

{[%evp 8,8,27]} 1. d4 {[%emt 0:00:53]} d5 {[%emt 0:00:22]} 2. Nf3 {[%emt 0:00:48]} Nf6 {[%emt 0:00:41]} 3. c4 {[%emt 0:00:53]} e6 {[%emt 0:00:27]} 4. Nc3 {[%emt 0:00:29]} Bb4 {[%emt 0:03:52] [#] An uneventful encounter.} {Predecessor:} 5. Bg5 $146 h6 6. Bxf6 {D38: Queen's Gambit Declined: Ragozin Defence (4 Nf3 Bb4).} Qxf6 7. e3 O-O 8. Rc1 dxc4 9. Bxc4 c5 10. O-O cxd4 11. Ne4 Qe7 12. a3 Ba5 13. exd4 Rd8 14. Ba2 Bd7 15. Qc2 Bc6 16. b4 Bb6 17. Rfe1 a5 18. h4 Bxe4 19. Rxe4 {½-½ (31) Mamedyarov,S (2776)-Dominguez Perez,L (2756) Berlin 2022} *